bitfinex/quotes_BTCUSD_20251113
["timestamp","ask_amount","ask_price","bid_price","bid_amount"]
[1762996653263,0.00047116,102400.0,102390.0,1.17747809]
[1762996653467,0.00047116,102400.0,102390.0,1.22842374]
[1762996653670,0.00047116,102400.0,102390.0,1.83957144]
[1762996653907,0.00047116,102400.0,102390.0,1.32370267]
[1762996654564,0.00047116,102400.0,102390.0,1.17747809]
[1762996654778,0.00047116,102400.0,102390.0,1.22842374]
[1762996655388,0.00047116,102400.0,102390.0,1.17747809]
[1762996655793,0.00047116,102400.0,102390.0,1.20326438]
[1762996657085,0.00047116,102400.0,102390.0,0.68739561]
[1762996657290,0.00047116,102400.0,102390.0,0.65273417]
[1762996657499,0.00047116,102400.0,102390.0,0.25044808]
[1762996657728,0.19578452,102400.0,102380.0,0.19534786]
[1762996658146,0.19533157,102390.0,102380.0,0.26809923]
[1762996658362,0.19533157,102390.0,102380.0,0.22468049]
[1762996658571,0.19578452,102400.0,102380.0,0.19535065]
[1762996658772,0.19578452,102400.0,102380.0,0.51835065]
[1762996658960,0.00047116,102400.0,102390.0,0.19533157]
[1762996659173,0.19578432,102400.0,102390.0,0.19533157]
[1762996659829,0.19578432,102400.0,102380.0,0.51835065]
[1762996660062,0.19578432,102400.0,102390.0,0.19533157]
[1762996660484,0.00047116,102400.0,102390.0,0.19533157]
[1762996661581,0.19533157,102390.0,102380.0,0.51835065]
[1762996661797,0.19578366,102400.0,102380.0,0.51835065]
[1762996662218,0.19533157,102390.0,102380.0,0.51835065]
[1762996662421,0.19578366,102400.0,102380.0,0.51835065]
[1762996662629,0.19578366,102400.0,102390.0,0.19533157]
[1762996663052,0.19578366,102400.0,102380.0,0.51835065]
[1762996663282,0.84785927,102390.0,102370.0,0.2309245]
[1762996663481,0.84785927,102390.0,102380.0,0.19535065]
[1762996663691,0.06598781,102390.0,102370.0,0.20513821]
[1762996663951,0.16126674,102390.0,102380.0,0.19535065]
[1762996664153,0.16126674,102390.0,102370.0,0.20513821]
[1762996664361,0.19535065,102380.0,102370.0,0.20513821]
[1762996665220,0.67713551,102390.0,102370.0,0.20513821]
[1762996665868,0.19535065,102380.0,102370.0,0.20513821]
[1762996666090,0.67713551,102390.0,102370.0,0.20513821]
[1762996666305,0.16126674,102390.0,102370.0,0.20513821]
[1762996666930,0.19535065,102380.0,102370.0,0.20513821]
[1762996667167,0.16126674,102390.0,102370.0,0.20513821]
[1762996668088,0.00047116,102400.0,102390.0,0.19533157]
[1762996668315,0.19533157,102390.0,102380.0,0.19535065]
[1762996668527,0.19533157,102390.0,102370.0,0.20513821]
[1762996668737,0.19533157,102390.0,102380.0,0.19535065]
[1762996669390,0.19533157,102390.0,102370.0,0.35163821]
[1762996669611,0.19533157,102390.0,102380.0,0.19535065]
[1762996669820,0.84785927,102390.0,102380.0,0.19535065]
[1762996670039,0.2906105,102390.0,102380.0,0.19535065]
[1762996670261,0.2906105,102390.0,102370.0,0.20513821]
[1762996670695,0.19535065,102380.0,102370.0,0.20513821]
[1762996671106,0.84785927,102390.0,102370.0,0.20513821]
[1762996671322,0.19533157,102390.0,102380.0,0.19535065]
[1762996671532,0.19533157,102390.0,102370.0,0.20513821]
[1762996671750,0.29062958,102380.0,102370.0,0.20513821]
[1762996672387,0.19536973,102370.0,102360.0,0.55394455]
[1762996672567,0.19536973,102370.0,102360.0,0.19538882]
[1762996672878,0.29062958,102380.0,102360.0,0.19538882]
[1762996673121,0.29062958,102380.0,102370.0,0.19536973]
[1762996673332,0.09527893,102380.0,102370.0,0.19536973]
[1762996673543,0.30037707,102390.0,102380.0,0.19535065]
[1762996673751,0.09527893,102390.0,102380.0,0.19535065]
[1762996673958,0.3910505,102390.0,102370.0,0.19536969]
[1762996674188,0.19535065,102380.0,102360.0,0.20515826]
[1762996674402,0.29064866,102370.0,102360.0,0.20515826]
[1762996675564,0.24974928,102400.0,102380.0,0.19535049]
[1762996675780,0.30082821,102400.0,102380.0,0.19535049]
[1762996676004,0.19533157,102390.0,102380.0,0.19535049]
[1762996676427,0.30082821,102400.0,102380.0,0.19535049]
[1762996676637,0.30082821,102400.0,102390.0,0.19533157]
[1762996676862,0.09575009,102400.0,102390.0,0.19533157]
[1762996677304,0.00047116,102400.0,102390.0,0.19533157]
[1762996677832,0.00047116,102400.0,102390.0,1.07761908]
[1762996679104,0.00047116,102400.0,102390.0,1.10348941]
[1762996681266,0.00047116,102400.0,102390.0,0.62228208]
[1762996681489,0.00047116,102400.0,102390.0,0.19533157]
[1762996681913,0.29106259,102400.0,102380.0,0.22122082]
[1762996682370,0.00047116,102400.0,102390.0,0.19533157]
[1762996683062,0.00047116,102400.0,102390.0,0.2212019]
[1762996683272,0.00047116,102400.0,102390.0,0.19533157]
[1762996683694,0.00047116,102400.0,102390.0,1.07761908]
[1762996683905,0.00047116,102400.0,102390.0,1.10350224]
[1762996684129,0.00047116,102400.0,102390.0,0.59763346]
[1762996684355,0.00047116,102400.0,102390.0,1.20206455]
[1762996684570,0.0002,102420.0,102410.0,1.07758093]
[1762996684782,0.0002,102420.0,102410.0,1.10358936]
[1762996685441,0.0002,102420.0,102410.0,0.54430185]
[1762996685662,0.0002,102420.0,102410.0,0.32314084]
[1762996685663,0.29075329,102420.0,102410.0,0.32314084]
[1762996685875,0.29075329,102420.0,102410.0,0.00014084]
[1762996686090,0.34267329,102420.0,102410.0,0.00014084]
[1762996686774,0.34267329,102420.0,102410.0,0.19543426]
[1762996687206,0.29075329,102420.0,102410.0,0.19543426]
[1762996687422,0.0002,102420.0,102410.0,0.238853]
[1762996687654,0.0002,102420.0,102410.0,1.07772177]
[1762996687863,0.0002,102420.0,102410.0,0.51843426]
[1762996692001,0.19547436,102420.0,102410.0,0.51843426]
[1762996692428,0.76326313,102420.0,102410.0,0.00014084]
[1762996692854,0.24739436,102420.0,102410.0,0.19543426]
[1762996693059,0.29075329,102420.0,102410.0,0.19543426]
[1762996693278,0.09547893,102420.0,102410.0,0.19543426]
[1762996693511,0.0002,102420.0,102410.0,0.19543426]
[1762996693732,0.0002,102420.0,102410.0,1.08772176]
[1762996693967,0.0002,102420.0,102410.0,1.09772175]
[1762996694183,0.0002,102420.0,102410.0,0.62025265]
[1762996694407,0.0002,102420.0,102410.0,1.13612142]
[1762996694883,0.0002,102420.0,102410.0,1.18706707]
[1762996695100,0.0002,102430.0,102420.0,1.04414312]
[1762996695318,0.0002,102430.0,102420.0,1.14028489]
[1762996695530,0.0002,102430.0,102420.0,1.1302849]
[1762996695754,0.0002,102430.0,102420.0,1.09442975]
[1762996695992,0.0002,102430.0,102420.0,1.13784849]
[1762996696196,0.0002,102430.0,102420.0,0.58752301]
[1762996696406,0.0002,102430.0,102420.0,1.10339178]
[1762996697043,0.0002,102430.0,102420.0,1.07756187]
[1762996697799,0.0002,102430.0,102420.0,0.51827436]
[1762996698260,0.0002,102430.0,102420.0,1.03414313]
[1762996698486,0.0002,102430.0,102420.0,1.07756187]
[1762996698712,1e-08,102430.0,102420.0,1.11339177]
[1762996698942,1e-08,102440.0,102430.0,0.58167401]
[1762996699173,1e-08,102440.0,102430.0,1.26319195]
[1762996700052,1e-08,102440.0,102430.0,1.31487702]
[1762996700472,1e-08,102440.0,102430.0,1.26319195]
[1762996700693,1e-08,102440.0,102430.0,0.63187578]
[1762996700903,1e-08,102440.0,102430.0,1.23456889]
[1762996701107,1e-08,102440.0,102430.0,1.2789813]
[1762996701321,1e-08,102440.0,102430.0,1.26319195]
[1762996701556,1e-08,102440.0,102430.0,1.28897551]
[1762996701745,1e-08,102440.0,102430.0,1.25456309]
[1762996701956,1e-08,102440.0,102430.0,1.28897551]
[1762996702633,1e-08,102440.0,102430.0,0.62187001]
[1762996702854,1e-08,102440.0,102430.0,0.54403885]
[1762996703074,1e-08,102440.0,102430.0,1.19114437]
[1762996703502,1e-08,102440.0,102430.0,1.20877955]
[1762996703921,1e-08,102440.0,102430.0,1.23456311]
[1762996706512,1e-08,102440.0,102430.0,1.27897552]
[1762996706721,1e-08,102440.0,102430.0,1.30829127]
[1762996707143,1e-08,102440.0,102430.0,1.34419277]
[1762996707365,1e-08,102440.0,102430.0,1.30978035]
[1762996707583,1e-08,102450.0,102440.0,0.58165495]
[1762996707794,1e-08,102450.0,102440.0,1.28018457]
[1762996708014,1e-08,102450.0,102440.0,1.35186964]
[1762996708244,1e-08,102450.0,102440.0,1.41275425]
[1762996708478,1e-08,102490.0,102480.0,0.57157876]
[1762996708707,1e-08,102490.0,102480.0,1.28019967]
[1762996708962,1e-08,102490.0,102480.0,1.24527938]
[1762996709196,1e-08,102490.0,102480.0,1.9610721]
[1762996709407,1e-08,102490.0,102480.0,1.96381029]
[1762996709625,1e-08,102490.0,102480.0,1.96785738]
[1762996709835,1e-08,102490.0,102480.0,1.94785738]
[1762996710051,1e-08,102490.0,102480.0,1.89643199]
[1762996710547,1e-08,102490.0,102480.0,1.29071664]
[1762996710730,1e-08,102490.0,102480.0,1.30071663]
[1762996710936,1e-08,102490.0,102480.0,1.94782215]
[1762996711383,1e-08,102490.0,102480.0,1.98205749]
[1762996711618,1e-08,102490.0,102480.0,1.33495197]
[1762996712516,1e-08,102490.0,102480.0,1.28356181]
[1762996712745,0.0002,102510.0,102480.0,1.28356181]
[1762996712963,1e-08,102510.0,102500.0,1.26288153]
[1762996713198,1e-08,102510.0,102500.0,1.29843162]
[1762996714265,0.0014774,102510.0,102500.0,1.33266696]
[1762996714484,0.0014774,102510.0,102500.0,1.29843162]
[1762996714705,0.0014774,102510.0,102500.0,0.6513261]
[1762996714923,0.0014774,102510.0,102500.0,1.39371055]
[1762996716072,0.0014774,102510.0,102500.0,0.73660504]
[1762996716296,0.0014774,102510.0,102500.0,0.84222747]
[1762996716519,0.0014774,102510.0,102500.0,0.19512195]
[1762996716728,0.0014774,102510.0,102500.0,0.84222747]
[1762996717134,0.0014774,102510.0,102500.0,1.16522747]
[1762996717405,0.0014774,102510.0,102500.0,0.84222747]
[1762996717622,0.0014774,102510.0,102500.0,1.16522747]
[1762996718008,0.0014774,102510.0,102500.0,0.84222747]
[1762996718483,0.0014774,102510.0,102500.0,1.16522747]
[1762996719146,0.19658031,102510.0,102500.0,1.16522747]
[1762996719565,0.0014774,102510.0,102500.0,0.51812195]
[1762996719994,0.0014774,102510.0,102500.0,1.16522747]
[1762996720859,0.19658031,102510.0,102500.0,1.16522747]
[1762996721092,0.19658031,102510.0,102500.0,0.51812195]
[1762996721093,0.29185924,102510.0,102500.0,0.51812195]
[1762996721533,0.29185924,102510.0,102500.0,1.38666155]
[1762996721534,1e-08,102510.0,102500.0,1.38666155]
[1762996721780,1e-08,102510.0,102500.0,0.73955603]
[1762996722001,1e-08,102510.0,102500.0,1.38666155]
[1762996722188,1e-08,102510.0,102500.0,1.42089689]
[1762996722849,1e-08,102510.0,102500.0,0.77379137]
[1762996723056,1e-08,102510.0,102500.0,1.42089689]
[1762996723911,1e-08,102510.0,102500.0,1.26293383]
[1762996724359,1e-08,102510.0,102500.0,0.92993384]
[1762996724561,1e-08,102510.0,102500.0,1.25293384]
[1762996724792,1e-08,102510.0,102500.0,1.22730264]
[1762996725614,1e-08,102510.0,102500.0,1.2186462]
[1762996726916,1e-08,102510.0,102500.0,1.20864621]
[1762996727122,1e-08,102510.0,102500.0,1.2186462]
[1762996727528,1e-08,102510.0,102500.0,1.3651462]
[1762996728206,1e-08,102510.0,102500.0,0.71804068]
[1762996728438,1e-08,102510.0,102500.0,1.23427741]
[1762996728644,1e-08,102510.0,102500.0,1.20864621]
[1762996729070,1e-08,102510.0,102500.0,1.29835739]
[1762996729499,1e-08,102510.0,102500.0,1.33259273]
[1762996729919,1e-08,102510.0,102500.0,1.32259274]
[1762996730122,1e-08,102510.0,102500.0,1.2442774]
[1762996730759,1e-08,102510.0,102500.0,1.27851274]
[1762996732025,1e-08,102510.0,102500.0,1.23427741]
[1762996732462,1e-08,102510.0,102500.0,1.26851275]
[1762996734554,1e-08,102510.0,102500.0,1.24288155]
[1762996734750,1e-08,102510.0,102500.0,1.29427171]
[1762996735159,1e-08,102510.0,102500.0,1.24288155]
[1762996735556,1e-08,102510.0,102500.0,1.29427171]
[1762996736422,1e-08,102510.0,102500.0,1.26003637]
[1762996737347,1e-08,102510.0,102500.0,1.20864621]
[1762996738526,1e-08,102510.0,102500.0,1.27733341]
[1762996738759,1e-08,102510.0,102500.0,1.29733339]
[1762996739433,1e-08,102510.0,102500.0,1.2873334]
[1762996739656,1e-08,102510.0,102500.0,1.29733339]
[1762996740127,1e-08,102510.0,102500.0,1.2873334]
[1762996740354,1e-08,102510.0,102500.0,1.27733341]
[1762996741303,1e-08,102510.0,102500.0,0.63022789]
[1762996741528,1e-08,102510.0,102500.0,1.20864621]
[1762996741969,0.19510292,102510.0,102500.0,0.893966]
[1762996742193,0.31368169,102510.0,102500.0,0.0603767]
[1762996742430,0.27466292,102510.0,102500.0,0.0603767]
[1762996742646,0.27466292,102510.0,102500.0,0.02587864]
[1762996743090,0.32218292,102510.0,102500.0,0.02587864]
[1762996743318,0.19512195,102500.0,102490.0,0.02587864]
[1762996743541,0.20483899,102520.0,102500.0,0.19512195]
[1762996743792,0.22309194,102520.0,102510.0,0.19510291]
[1762996744008,0.33446184,102510.0,102500.0,0.22100059]
[1762996744227,0.23918291,102510.0,102490.0,1.23538024]
[1762996744436,0.19512195,102500.0,102490.0,0.58827472]
[1762996744658,0.19512195,102500.0,102490.0,0.0603767]
[1762996744886,0.19512195,102500.0,102490.0,0.02587864]
[1762996745105,0.32373901,102510.0,102480.0,0.87804303]
[1762996745314,0.19514098,102490.0,102480.0,0.55393751]
[1762996745526,0.04408,102490.0,102480.0,0.55393751]
[1762996745976,0.23922098,102490.0,102480.0,0.55393751]
[1762996746207,0.23922098,102490.0,102480.0,0.54417951]
[1762996746423,0.23922098,102490.0,102480.0,0.51830087]
[1762996746632,0.23922098,102490.0,102480.0,0.32314084]
[1762996747062,0.23922098,102490.0,102480.0,0.00014084]
[1762996747772,0.04408,102490.0,102480.0,0.00014084]
[1762996748021,0.20485805,102510.0,102500.0,0.19512195]
[1762996748215,0.30011792,102520.0,102500.0,0.19512195]
[1762996748426,0.23918291,102510.0,102500.0,0.19512195]
[1762996748632,0.27494291,102510.0,102490.0,0.52789609]
[1762996748906,0.09527893,102500.0,102490.0,0.52789609]
[1762996749097,0.33448088,102500.0,102490.0,0.52789609]
[1762996749510,0.13935893,102500.0,102490.0,0.52789609]
[1762996750780,0.19510457,102510.0,102500.0,0.19510941]
[1762996750984,0.23918457,102510.0,102500.0,0.19510941]
[1762996752227,0.04408,102510.0,102500.0,0.19510941]
[1762996752867,0.23918291,102510.0,102500.0,0.19510941]
[1762996754131,0.04408,102510.0,102500.0,0.19510941]
[1762996754366,0.30036407,102520.0,102510.0,0.19510291]
[1762996754693,0.34444407,102520.0,102510.0,0.19510291]
[1762996755034,0.09552508,102520.0,102510.0,0.19510291]
[1762996755247,0.33468896,102520.0,102510.0,0.19510291]
[1762996755730,0.09552508,102520.0,102510.0,0.19510291]
[1762996755927,0.13960508,102520.0,102510.0,0.19510291]
[1762996756131,0.04432615,102520.0,102510.0,0.84220843]
[1762996756373,0.00024615,102520.0,102510.0,1.16520843]
[1762996756586,0.04432615,102520.0,102510.0,1.20862717]
[1762996756793,0.04432615,102520.0,102510.0,0.56152165]
[1762996756988,0.04432615,102520.0,102510.0,1.20862717]
[1762996757217,0.04432615,102520.0,102510.0,1.23450581]
[1762996757464,0.04432615,102520.0,102510.0,0.58740029]
[1762996757581,0.04432615,102520.0,102510.0,1.23450581]
[1762996758279,0.00024615,102520.0,102510.0,1.23450581]
[1762996758998,0.19533003,102520.0,102510.0,0.58740029]
[1762996759184,0.19533003,102520.0,102510.0,0.323]
[1762996759631,0.19510291,102510.0,102500.0,0.17237864]
[1762996759838,0.23914291,102510.0,102500.0,0.22100059]
[1762996760331,0.04404,102510.0,102500.0,0.54400059]
[1762996760533,0.23914291,102510.0,102500.0,0.323]
[1762996760745,0.19512195,102500.0,102490.0,0.41177279]
[1762996760954,0.19512195,102500.0,102490.0,0.73477279]
[1762996761185,0.23914291,102510.0,102490.0,0.02587864]
[1762996761343,0.09527893,102500.0,102490.0,0.54401962]
[1762996762464,0.29040088,102500.0,102490.0,0.54401962]
[1762996763847,0.29040088,102500.0,102490.0,0.17237864]
[1762996764082,0.29040088,102500.0,102490.0,0.1465]
[1762996765097,0.29040088,102500.0,102490.0,0.34164098]
[1762996765341,0.29040088,102500.0,102490.0,0.1465]
[1762996765896,0.33792088,102500.0,102490.0,0.1465]
[1762996766325,0.19514098,102490.0,102480.0,0.00014084]
[1762996766487,0.23918098,102490.0,102480.0,0.00014084]
[1762996767088,0.90718492,102490.0,102480.0,0.00014084]
[1762996767306,0.92718492,102490.0,102480.0,0.00014084]
[1762996768140,0.95593396,102490.0,102480.0,0.00014084]
[1762996768383,1.05435431,102490.0,102480.0,0.00014084]
[1762996768741,3.05435431,102490.0,102480.0,0.00014084]
[1762996769195,3.02560527,102490.0,102480.0,0.00014084]
[1762996769386,3.39559714,102490.0,102480.0,0.00014084]
[1762996770173,3.3668481,102490.0,102480.0,0.00014084]
[1762996770772,0.19523623,102440.0,102430.0,0.02591245]
[1762996770999,0.23927623,102440.0,102430.0,0.00014095]
[1762996771811,0.28425134,102480.0,102460.0,0.19519776]
[1762996772026,0.09527893,102470.0,102460.0,0.19519776]
[1762996772228,0.13931893,102470.0,102460.0,0.19519776]
[1762996773258,0.334498,102470.0,102450.0,0.71945196]
[1762996773464,0.19519812,102460.0,102450.0,0.83747394]
[1762996773669,0.20112893,102470.0,102450.0,0.323]
[1762996773882,0.20112893,102470.0,102460.0,0.19519812]
[1762996773883,0.327218,102470.0,102460.0,0.19519812]
[1762996774086,0.327218,102470.0,102450.0,0.51821556]
[1762996774306,0.327218,102470.0,102460.0,0.19519812]
[1762996774502,0.327218,102470.0,102450.0,0.51821556]
[1762996774709,0.04404,102460.0,102450.0,0.51821556]
[1762996775115,0.23923812,102460.0,102450.0,0.51821556]
[1762996775769,0.04404,102460.0,102450.0,0.51821556]
[1762996775963,0.327218,102470.0,102460.0,0.19519812]
[1762996776171,0.09527893,102470.0,102460.0,0.19519812]
[1762996776375,0.334498,102470.0,102460.0,0.19519812]
[1762996776583,0.334498,102470.0,102450.0,0.51821556]
[1762996776783,0.371258,102470.0,102450.0,0.51821556]
[1762996777000,0.19519812,102460.0,102450.0,0.51821556]
[1762996777242,0.23923812,102460.0,102450.0,0.323]
[1762996777498,0.23923812,102460.0,102450.0,0.19521717]
[1762996777499,0.04404,102460.0,102450.0,0.19521717]
[1762996777748,0.23923812,102460.0,102440.0,0.5279962]
[1762996777996,0.23923812,102460.0,102450.0,0.19521717]
[1762996778466,0.19521717,102450.0,102440.0,0.5279962]
[1762996778720,0.19521717,102450.0,102440.0,0.323]
[1762996778970,0.19521717,102450.0,102430.0,0.00014095]
[1762996778971,0.19523623,102440.0,102430.0,0.00014095]
[1762996779144,0.23927623,102440.0,102430.0,0.19539624]
[1762996779555,0.04404,102440.0,102430.0,0.19539624]
[1762996780426,0.22495802,102460.0,102440.0,0.19523623]
[1762996780624,0.13931893,102450.0,102440.0,0.70971017]
[1762996781223,0.3345361,102450.0,102440.0,0.19523623]
[1762996781639,0.3712961,102450.0,102430.0,1.03287018]
[1762996781859,0.17607893,102450.0,102440.0,0.19523623]
[1762996782055,0.13931893,102450.0,102440.0,0.19523623]
[1762996782457,0.3345361,102450.0,102440.0,0.19523623]
[1762996783625,0.3345361,102450.0,102430.0,1.03287018]
[1762996783787,0.3345361,102450.0,102430.0,0.32314095]
[1762996783788,0.19523623,102440.0,102430.0,0.32314095]
[1762996783989,0.24316623,102440.0,102430.0,0.00014095]
[1762996784400,0.31225623,102440.0,102430.0,0.00014095]
[1762996784606,0.84673017,102440.0,102430.0,0.00014095]
[1762996785392,0.86489132,102440.0,102430.0,0.00014095]
[1762996785853,0.86589132,102440.0,102430.0,0.00014095]
[1762996786640,0.86589132,102440.0,102430.0,0.00514095]
[1762996787042,0.95078454,102440.0,102430.0,0.00514095]
[1762996787368,0.86589132,102440.0,102430.0,0.00514095]
[1762996788199,2.86589132,102440.0,102430.0,0.00514095]
[1762996788402,0.1953125,102400.0,102390.0,0.19573157]
[1762996788652,0.04418131,102400.0,102390.0,0.51873157]
[1762996788771,0.23949381,102400.0,102390.0,0.51873157]
[1762996789233,0.23949381,102400.0,102390.0,0.19573157]
[1762996789649,0.23949381,102400.0,102390.0,0.51873157]
[1762996789988,0.24049381,102400.0,102390.0,0.51873157]
[1762996790185,0.04618131,102400.0,102390.0,0.52773157]
[1762996790482,0.24149381,102400.0,102390.0,0.3324]
[1762996790686,0.04618131,102400.0,102390.0,0.52773157]
[1762996792281,0.00214131,102400.0,102390.0,0.52773157]
[1762996792482,0.04622131,102400.0,102390.0,0.52773157]
[1762996793661,0.04622131,102400.0,102390.0,1.04220551]
[1762996793662,0.00214131,102400.0,102390.0,1.04220551]
[1762996793861,0.04622131,102400.0,102390.0,1.04220551]
[1762996794777,0.35499478,102400.0,102390.0,0.0094]
[1762996794985,0.35499478,102400.0,102390.0,0.20473157]
[1762996795185,0.35499478,102400.0,102390.0,0.0094]
[1762996795743,0.47201478,102400.0,102390.0,0.0094]
[1762996795957,0.98648872,102400.0,102390.0,0.0094]
[1762996796162,1.00648872,102400.0,102390.0,0.0094]
[1762996796764,3.8713117,102400.0,102390.0,0.0094]
[1762996796967,0.19533157,102390.0,102380.0,0.00401471]
[1762996797170,1.0001879,102390.0,102380.0,0.00401471]
[1762996797645,3.0001879,102390.0,102380.0,0.00401471]
[1762996798633,3.0011879,102390.0,102380.0,0.00701471]
[1762996798833,2.48671396,102390.0,102380.0,0.00701471]
[1762996799071,3.0011879,102390.0,102380.0,0.00701471]
[1762996799705,3.0011879,102390.0,102350.0,0.52817824]
[1762996799706,0.19538882,102360.0,102350.0,0.323]
[1762996800023,0.25765086,102360.0,102350.0,0.51840791]
[1762996800847,0.25779209,102360.0,102350.0,0.52540791]
[1762996801028,0.30659209,102360.0,102350.0,0.007]
[1762996801240,2.9635601,102360.0,102350.0,0.007]
[1762996801457,2.9204801,102360.0,102350.0,0.007]
[1762996801744,0.9645601,102360.0,102350.0,0.007]
[1762996801980,0.82516078,102350.0,102340.0,0.0004]
[1762996802204,3.13135191,102350.0,102340.0,0.0004]
[1762996803247,3.13201317,102350.0,102340.0,0.0004]
[1762996803463,3.08793317,102350.0,102340.0,0.0004]
[1762996803667,1.31251282,102350.0,102340.0,0.0004]
[1762996803873,0.35294888,102350.0,102340.0,0.0004]
[1762996804083,0.30986888,102350.0,102340.0,0.195827]
[1762996804302,0.01918204,102350.0,102340.0,0.195827]
[1762996804504,0.06226204,102350.0,102340.0,1.03330094]
[1762996804653,0.01918204,102350.0,102340.0,1.03330094]
[1762996805063,0.04422123,102360.0,102340.0,1.03330094]
[1762996805064,0.04422123,102360.0,102350.0,0.19540791]
[1762996805268,0.04422123,102360.0,102350.0,0.19614808]
[1762996805825,0.23961005,102360.0,102350.0,0.19614808]
[1762996806031,0.27407389,102360.0,102350.0,0.00074017]
[1762996806248,0.28314005,102360.0,102350.0,0.00074017]
[1762996806463,0.90367488,102360.0,102350.0,0.00074017]
[1762996807306,0.38920094,102360.0,102350.0,0.00074017]
[1762996807510,0.39020094,102360.0,102350.0,0.00474017]
[1762996807726,0.48762129,102360.0,102350.0,0.00074017]
[1762996807936,1.00209523,102360.0,102350.0,0.00074017]
[1762996808146,1.00309523,102360.0,102350.0,0.00574017]
[1762996808352,0.48862129,102360.0,102350.0,0.00574017]
[1762996808578,1.00309523,102360.0,102350.0,0.00574017]
[1762996809884,3.32609523,102360.0,102350.0,0.00574017]
[1762996810304,0.31068684,102350.0,102340.0,0.0004]
[1762996810535,3.21124888,102350.0,102340.0,1e-08]
[1762996810751,3.45007553,102350.0,102340.0,1e-08]
[1762996810932,3.45007553,102350.0,102320.0,0.0004]
[1762996810933,0.72992004,102330.0,102320.0,0.0004]
[1762996811184,0.82543093,102330.0,102320.0,0.0004]
[1762996811372,0.93745093,102330.0,102320.0,0.0004]
[1762996811611,0.19552253,102290.0,102280.0,5.00866]
[1762996812739,0.9506054,102290.0,102280.0,5.00866]
[1762996812960,0.46753824,102290.0,102280.0,5.00866]
[1762996813191,0.48753824,102290.0,102280.0,5.00866]
[1762996813623,0.97074647,102290.0,102280.0,5.00866]
[1762996813835,0.58795859,102290.0,102280.0,5.01266]
[1762996814055,1.07116682,102290.0,102280.0,5.01266]
[1762996814266,0.55569288,102290.0,102280.0,5.01266]
[1762996814480,0.57481921,102290.0,102280.0,5.01566]
[1762996815116,1.08929315,102290.0,102280.0,5.01566]
[1762996815320,3.08929315,102290.0,102280.0,5.01566]
[1762996816152,0.34492886,102290.0,102280.0,5.01566]
[1762996816356,0.38899395,102290.0,102280.0,5.21120165]
[1762996816568,0.14939142,102290.0,102280.0,5.21120165]
[1762996816785,0.19347142,102290.0,102280.0,5.21120165]
[1762996816974,0.34491395,102290.0,102280.0,5.01714163]
[1762996817217,0.57650569,102290.0,102280.0,5.01714163]
[1762996817836,0.52046395,102290.0,102280.0,5.01714163]
[1762996818476,0.40844395,102290.0,102280.0,5.01714163]
[1762996818667,0.15961142,102290.0,102280.0,5.21268328]
[1762996818867,0.11553142,102290.0,102280.0,5.21268328]
[1762996819200,0.35513395,102290.0,102280.0,5.01714163]
[1762996819370,0.38899395,102290.0,102280.0,5.01714163]
[1762996819606,0.6188843,102290.0,102280.0,5.01714163]
[1762996819827,0.52046395,102290.0,102280.0,5.01714163]
[1762996820567,0.45252395,102290.0,102280.0,5.01714163]
[1762996821003,0.31105395,102290.0,102280.0,5.21268328]
[1762996821232,0.31105395,102290.0,102280.0,5.01714163]
[1762996821233,0.50046395,102290.0,102280.0,5.01714163]
[1762996821437,1.22175596,102290.0,102280.0,5.01714163]
[1762996821750,0.59206069,102290.0,102280.0,5.01714163]
[1762996822200,3.24175596,102290.0,102280.0,5.01714163]
[1762996822420,3.56475596,102290.0,102280.0,5.01714163]
[1762996822626,2.91506069,102290.0,102280.0,5.01714163]
[1762996822828,0.59206069,102290.0,102280.0,5.01714163]
[1762996823806,3.24175596,102290.0,102280.0,4.87460163]
[1762996824004,3.59602167,102290.0,102280.0,4.87460163]
[1762996824244,3.56475596,102290.0,102280.0,4.87460163]
[1762996824432,3.59602167,102290.0,102280.0,4.87460163]
[1762996824807,3.6494404,102290.0,102280.0,4.35718685]
[1762996825008,2.99974513,102290.0,102280.0,4.35718685]
[1762996825222,3.6494404,102290.0,102280.0,4.35718685]
[1762996825421,3.65944039,102290.0,102280.0,3.79732617]
[1762996825624,3.6474404,102290.0,102280.0,3.64831117]
[1762996825824,3.62617468,102290.0,102280.0,3.58795854]
[1762996826067,3.62717468,102290.0,102280.0,3.58795854]
[1762996826246,3.6474404,102290.0,102280.0,3.58795854]
[1762996826403,3.62617468,102290.0,102280.0,3.58795854]
[1762996826622,3.65744039,102290.0,102280.0,3.58795854]
[1762996826807,3.5640947,102290.0,102280.0,3.58795854]
[1762996827029,3.62817468,102290.0,102280.0,3.58795854]
[1762996827853,3.58409468,102290.0,102280.0,3.58795854]
[1762996828063,2.97851491,102290.0,102280.0,3.58795854]
[1762996828516,3.49253346,102290.0,102280.0,3.58795854]
[1762996828724,2.47641945,102290.0,102280.0,3.58795854]
[1762996828927,0.52049945,102290.0,102280.0,3.58795854]
[1762996829145,2.84349945,102290.0,102280.0,3.58795854]
[1762996829342,3.49319472,102290.0,102280.0,3.58795854]
[1762996829564,3.63303381,102290.0,102280.0,3.58795854]
[1762996829777,3.6350338,102290.0,102280.0,2.95224998]
[1762996830232,3.66429951,102290.0,102280.0,2.95224998]
[1762996830481,0.01828799,102290.0,102280.0,3.07900998]
[1762996830721,0.15864692,102290.0,102280.0,3.27455163]
[1762996830935,0.15864692,102290.0,102280.0,3.9242469]
[1762996830936,0.01928799,102290.0,102280.0,3.9242469]
[1762996831183,0.01928799,102290.0,102280.0,4.2472469]
[1762996831398,0.00114107,102290.0,102280.0,4.2472469]
[1762996831651,0.00114107,102290.0,102280.0,3.59755163]
[1762996831884,0.00014107,102290.0,102280.0,3.59755163]
[1762996832191,0.01929582,102290.0,102280.0,3.27755163]
[1762996832391,0.00114107,102290.0,102280.0,4.2502469]
[1762996832596,0.00114107,102290.0,102280.0,4.29366564]
[1762996833004,0.00114107,102290.0,102280.0,4.29066564]
[1762996833207,0.00214107,102290.0,102280.0,4.29566564]
[1762996833438,0.34454774,102350.0,102310.0,0.19548431]
[1762996833645,0.4069263,102350.0,102330.0,0.19544191]
[1762996833837,0.40692622,102350.0,102330.0,0.19544191]
[1762996834038,0.40692622,102350.0,102340.0,0.195427]
[1762996834039,0.16743749,102350.0,102340.0,0.195427]
[1762996834213,0.21163749,102350.0,102340.0,0.195427]
[1762996834639,0.21163749,102350.0,102330.0,0.10486]
[1762996834640,0.195427,102340.0,102330.0,0.10486]
[1762996834861,0.1954461,102330.0,102300.0,0.19548431]
[1762996835071,0.1954674,102320.0,102300.0,0.27140271]
[1762996835273,0.28866303,102320.0,102300.0,0.27140271]
[1762996835476,0.03815783,102320.0,102310.0,0.22544431]
[1762996835650,0.05082445,102320.0,102310.0,0.22544431]
[1762996835897,0.24628965,102320.0,102310.0,0.22444431]
[1762996836056,0.05082445,102320.0,102310.0,0.22444431]
[1762996836266,0.11343676,102320.0,102310.0,0.22444431]